[Event "Titled Tuesday Blitz March 21 Late 2023"]
[White "Costachi, Mihnea"]
[Black "Sivakumar, Shaaketh"]
[WhiteFideId "1217518"]
[BlackFideId "30940176"]
[WhiteElo "2456"]
[BlackElo "2174"]
[Result "1-0"]
[Round "02"]
[TimeControl "180+2"]
[Date "2023.03.21"]
[WhiteClock "0:02:09"]
[BlackClock "0:02:46"]

1. d4 {[%clk 0:03:00]}  e6 {[%clk 0:03:00]} 2. c4 {[%clk 0:03:01]}  b6 {[%clk 0:03:00]} 3. e4 {[%clk 0:03:00]}  Bb4+ {[%clk 0:02:59]} 4. Bd2 {[%clk 0:03:00]}  Bxd2+ {[%clk 0:03:00]} 5. Qxd2 {[%clk 0:03:01]}  d5 {[%clk 0:03:00]} 6. cxd5 {[%clk 0:03:01]}  exd5 {[%clk 0:03:01]} 7. e5 {[%clk 0:03:01]}  Ne7 {[%clk 0:03:00]} 8. Bd3 {[%clk 0:02:57]}  c5 {[%clk 0:03:00]} 9. Nf3 {[%clk 0:02:56]}  Bf5 {[%clk 0:03:00]} 10. O-O {[%clk 0:02:53]}  Bxd3 {[%clk 0:03:00]} 11. Qxd3 {[%clk 0:02:53]}  Nbc6 {[%clk 0:03:01]} 12. Nc3 {[%clk 0:02:52]}  c4 {[%clk 0:02:59]} 13. Qd2 {[%clk 0:02:46]}  Qd7 {[%clk 0:02:59]} 14. b3 {[%clk 0:02:43]}  cxb3 {[%clk 0:02:57]} 15. axb3 {[%clk 0:02:44]}  Na5 {[%clk 0:02:58]} 16. b4 {[%clk 0:02:31]}  Nb3 {[%clk 0:02:57]} 17. Qg5 {[%clk 0:02:30]}  Nxa1 {[%clk 0:02:54]} 18. Rxa1 {[%clk 0:02:31]}  O-O {[%clk 0:02:53]} 19. Ne2 {[%clk 0:02:27]}  Qf5 {[%clk 0:02:52]} 20. Qxe7 {[%clk 0:02:27]}  Rfc8 {[%clk 0:02:49]} 21. h3 {[%clk 0:02:24]}  Qd3 {[%clk 0:02:48]} 22. Ng3 {[%clk 0:02:21]}  a5 {[%clk 0:02:47]} 23. bxa5 {[%clk 0:02:18]}  bxa5 {[%clk 0:02:48]} 24. e6 {[%clk 0:02:15]}  fxe6 {[%clk 0:02:47]} 25. Qxe6+ {[%clk 0:02:13]}  Kh8 {[%clk 0:02:47]} 26. Ne5 {[%clk 0:02:12]}  Qc3 {[%clk 0:02:44]} 27. Nf7+ {[%clk 0:02:12]}  Kg8 {[%clk 0:02:44]} 28. Nh6+ {[%clk 0:02:11]}  Kh8 {[%clk 0:02:45]} 29. Qg8+ {[%clk 0:02:10]}  Rxg8 {[%clk 0:02:46]} 30. Nf7# {[%clk 0:02:09]} 1-0


[Site "https://www.chess.com"]

[Event "Titled Tuesday Blitz March 21 Late 2023"]
[White "Seemann, Jakub"]
[Black "Rasulov, Vugar"]
[WhiteFideId "21874697"]
[BlackFideId "13402390"]
[WhiteElo "2364"]
[BlackElo "2509"]
[Result "0-1"]
[Round "02"]
[TimeControl "180+2"]
[Date "2023.03.21"]
[WhiteClock "0:00:01"]
[BlackClock "0:00:39"]

1. e4 {[%clk 0:02:58]}  c5 {[%clk 0:02:59]} 2. Nf3 {[%clk 0:02:58]}  Nc6 {[%clk 0:02:59]} 3. Bb5 {[%clk 0:02:57]}  g6 {[%clk 0:02:58]} 4. O-O {[%clk 0:02:57]}  Bg7 {[%clk 0:02:58]} 5. c3 {[%clk 0:02:58]}  Nf6 {[%clk 0:02:56]} 6. d4 {[%clk 0:02:55]}  O-O {[%clk 0:02:41]} 7. d5 {[%clk 0:02:49]}  Nb8 {[%clk 0:02:36]} 8. e5 {[%clk 0:02:43]}  Ng4 {[%clk 0:02:33]} 9. Bf4 {[%clk 0:02:43]}  d6 {[%clk 0:02:32]} 10. exd6 {[%clk 0:02:42]}  exd6 {[%clk 0:02:33]} 11. h3 {[%clk 0:02:40]}  Nf6 {[%clk 0:02:32]} 12. c4 {[%clk 0:02:24]}  a6 {[%clk 0:02:24]} 13. Ba4 {[%clk 0:02:23]}  Nh5 {[%clk 0:02:15]} 14. Bg5 {[%clk 0:02:13]}  Qb6 {[%clk 0:02:09]} 15. Nbd2 {[%clk 0:02:10]}  Bd7 {[%clk 0:02:04]} 16. Bc2 {[%clk 0:02:02]}  a5 {[%clk 0:01:56]} 17. Rb1 {[%clk 0:01:58]}  Na6 {[%clk 0:01:56]} 18. a3 {[%clk 0:01:57]}  Rfe8 {[%clk 0:01:56]} 19. Ne4 {[%clk 0:01:42]}  f5 {[%clk 0:01:41]} 20. Nc3 {[%clk 0:01:37]}  Qc7 {[%clk 0:01:36]} 21. Qd2 {[%clk 0:01:31]}  Nf6 {[%clk 0:01:29]} 22. Bh6 {[%clk 0:01:27]}  Re7 {[%clk 0:01:23]} 23. Bxg7 {[%clk 0:01:26]}  Kxg7 {[%clk 0:01:24]} 24. Rfe1 {[%clk 0:01:22]}  Rae8 {[%clk 0:01:24]} 25. Qf4 {[%clk 0:00:59]}  Rxe1+ {[%clk 0:01:18]} 26. Rxe1 {[%clk 0:01:00]}  Rxe1+ {[%clk 0:01:18]} 27. Nxe1 {[%clk 0:01:00]}  Be8 {[%clk 0:01:18]} 28. Qe3 {[%clk 0:00:52]}  Kf8 {[%clk 0:01:12]} 29. Nf3 {[%clk 0:00:51]}  Qe7 {[%clk 0:01:12]} 30. Qh6+ {[%clk 0:00:50]}  Kg8 {[%clk 0:01:11]} 31. Kh2 {[%clk 0:00:37]}  Nc7 {[%clk 0:01:11]} 32. Qf4 {[%clk 0:00:24]}  b5 {[%clk 0:01:04]} 33. cxb5 {[%clk 0:00:22]}  Nxb5 {[%clk 0:01:05]} 34. Nxb5 {[%clk 0:00:20]}  Bxb5 {[%clk 0:01:06]} 35. Ng5 {[%clk 0:00:15]}  Nxd5 {[%clk 0:00:44]} 36. Bb3 {[%clk 0:00:11]}  Bc6 {[%clk 0:00:45]} 37. Qd2 {[%clk 0:00:05]}  Kg7 {[%clk 0:00:41]} 38. Bxd5 {[%clk 0:00:04]}  Qe5+ {[%clk 0:00:41]} 39. g3 {[%clk 0:00:02]}  Qxd5 {[%clk 0:00:41]} 40. Qc3+ {[%clk 0:00:02]}  Kg8 {[%clk 0:00:41]} 41. f3 {[%clk 0:00:01]}  h6 {[%clk 0:00:41]} 42. Qf6 {[%clk 0:00:01]}  Qd2+ {[%clk 0:00:41]} 43. Kg1 {[%clk 0:00:01]}  Qxg5 {[%clk 0:00:38]} 44. Qe6+ {[%clk 0:00:01]}  Kg7 {[%clk 0:00:39]} 45. Qxd6 {[%clk 0:00:01]}  Qe3+ {[%clk 0:00:39]} 0-1


[Site "https://www.chess.com"]

[Event "Titled Tuesday Blitz March 21 Late 2023"]
[White "Drygalov, Andrey"]
[Black "Thomforde-Toates, Noah"]
[WhiteFideId "24171735"]
[BlackFideId "30951992"]
[WhiteElo "2471"]
[BlackElo "2603"]
[Result "1-0"]
[Round "02"]
[TimeControl "180+2"]
[Date "2023.03.21"]
[WhiteClock "0:00:14"]
[BlackClock "0:00:22"]

1. e4 {[%clk 0:03:00]}  c5 {[%clk 0:02:55]} 2. Nf3 {[%clk 0:03:00]}  g6 {[%clk 0:02:54]} 3. d4 {[%clk 0:03:00]}  cxd4 {[%clk 0:02:55]} 4. Nxd4 {[%clk 0:03:00]}  Bg7 {[%clk 0:02:55]} 5. c4 {[%clk 0:03:01]}  Nc6 {[%clk 0:02:56]} 6. Be3 {[%clk 0:03:01]}  Nf6 {[%clk 0:02:56]} 7. Nc3 {[%clk 0:03:02]}  Ng4 {[%clk 0:02:55]} 8. Qxg4 {[%clk 0:03:01]}  Nxd4 {[%clk 0:02:51]} 9. Qd1 {[%clk 0:03:01]}  e5 {[%clk 0:02:49]} 10. Bd3 {[%clk 0:02:57]}  O-O {[%clk 0:02:49]} 11. O-O {[%clk 0:02:57]}  d6 {[%clk 0:02:49]} 12. Ne2 {[%clk 0:02:57]}  Be6 {[%clk 0:02:39]} 13. Nxd4 {[%clk 0:02:54]}  exd4 {[%clk 0:02:39]} 14. Bf4 {[%clk 0:02:53]}  Qb6 {[%clk 0:02:33]} 15. b3 {[%clk 0:02:53]}  a5 {[%clk 0:02:33]} 16. Rb1 {[%clk 0:01:59]}  Qc5 {[%clk 0:02:28]} 17. Qd2 {[%clk 0:01:57]}  Rfd8 {[%clk 0:02:12]} 18. Bh6 {[%clk 0:01:51]}  Bh8 {[%clk 0:02:08]} 19. Rfc1 {[%clk 0:01:49]}  b6 {[%clk 0:01:45]} 20. Qg5 {[%clk 0:01:46]}  Bg7 {[%clk 0:01:21]} 21. Qd2 {[%clk 0:01:41]}  Bh8 {[%clk 0:01:20]} 22. Rd1 {[%clk 0:01:34]}  Bf6 {[%clk 0:01:16]} 23. Bf4 {[%clk 0:01:29]}  Bg7 {[%clk 0:01:09]} 24. a4 {[%clk 0:01:29]}  Rf8 {[%clk 0:01:05]} 25. f3 {[%clk 0:01:18]}  f5 {[%clk 0:01:01]} 26. Bg3 {[%clk 0:01:18]}  fxe4 {[%clk 0:00:58]} 27. Bxe4 {[%clk 0:01:17]}  Rad8 {[%clk 0:00:54]} 28. Rbc1 {[%clk 0:01:11]}  Qh5 {[%clk 0:00:48]} 29. Bd3 {[%clk 0:00:45]}  Bh6 {[%clk 0:00:47]} 30. f4 {[%clk 0:00:45]}  Bf5 {[%clk 0:00:46]} 31. Rf1 {[%clk 0:00:44]}  Bg7 {[%clk 0:00:42]} 32. Rce1 {[%clk 0:00:40]}  Rde8 {[%clk 0:00:41]} 33. Be2 {[%clk 0:00:31]}  Bg4 {[%clk 0:00:39]} 34. Bd3 {[%clk 0:00:28]}  Bf5 {[%clk 0:00:38]} 35. Bxf5 {[%clk 0:00:13]}  Qxf5 {[%clk 0:00:36]} 36. h3 {[%clk 0:00:14]}  d3 {[%clk 0:00:35]} 37. Rd1 {[%clk 0:00:13]}  Bd4+ {[%clk 0:00:34]} 38. Bf2 {[%clk 0:00:09]}  Re2 {[%clk 0:00:30]} 39. Qxd3 {[%clk 0:00:08]}  Rxf2 {[%clk 0:00:28]} 40. Qxd4 {[%clk 0:00:08]}  Rxf1+ {[%clk 0:00:26]} 41. Rxf1 {[%clk 0:00:08]}  Qc2 {[%clk 0:00:26]} 42. Qd5+ {[%clk 0:00:08]}  Kg7 {[%clk 0:00:26]} 43. Qd4+ {[%clk 0:00:08]}  Kg8 {[%clk 0:00:26]} 44. Qxb6 {[%clk 0:00:09]}  Re8 {[%clk 0:00:25]} 45. Qxa5 {[%clk 0:00:09]}  Re2 {[%clk 0:00:24]} 46. Qd5+ {[%clk 0:00:10]}  Kg7 {[%clk 0:00:24]} 47. Qd4+ {[%clk 0:00:10]}  Kh6 {[%clk 0:00:25]} 48. Qd5 {[%clk 0:00:11]}  Kg7 {[%clk 0:00:24]} 49. f5 {[%clk 0:00:11]}  gxf5 {[%clk 0:00:24]} 50. Qd4+ {[%clk 0:00:11]}  Kg6 {[%clk 0:00:24]} 51. Qxd6+ {[%clk 0:00:12]}  Kg5 {[%clk 0:00:24]} 52. Qd5 {[%clk 0:00:12]}  h5 {[%clk 0:00:23]} 53. Qf3 {[%clk 0:00:12]}  h4 {[%clk 0:00:20]} 54. a5 {[%clk 0:00:13]}  Qe4 {[%clk 0:00:18]} 55. Qxe4 {[%clk 0:00:12]}  fxe4 {[%clk 0:00:19]} 56. Ra1 {[%clk 0:00:11]}  Kf4 {[%clk 0:00:19]} 57. a6 {[%clk 0:00:11]}  Kg3 {[%clk 0:00:20]} 58. a7 {[%clk 0:00:11]}  Rxg2+ {[%clk 0:00:20]} 59. Kf1 {[%clk 0:00:11]}  Rf2+ {[%clk 0:00:19]} 60. Ke1 {[%clk 0:00:11]}  Rg2 {[%clk 0:00:19]} 61. a8=Q {[%clk 0:00:12]}  Rg1+ {[%clk 0:00:20]} 62. Ke2 {[%clk 0:00:12]}  Rg2+ {[%clk 0:00:21]} 63. Ke3 {[%clk 0:00:13]}  Rf2 {[%clk 0:00:22]} 64. Qb8+ {[%clk 0:00:12]}  Kg2 {[%clk 0:00:22]} 65. Qg8+ {[%clk 0:00:12]}  Kh2 {[%clk 0:00:21]} 66. Kxf2 {[%clk 0:00:13]}  e3+ {[%clk 0:00:22]} 67. Kf3 {[%clk 0:00:13]}  e2 {[%clk 0:00:22]} 68. Qg2# {[%clk 0:00:14]} 1-0


[Site "https://www.chess.com"]

[Event "Titled Tuesday Blitz March 21 Late 2023"]
[White "Ozates, Tuna"]
[Black "Perez Ponsa, Federico"]
[WhiteFideId "6354521"]
[BlackFideId "117927"]
[WhiteElo "2151"]
[BlackElo "2592"]
[Result "0-1"]
[Round "02"]
[TimeControl "180+2"]
[Date "2023.03.21"]
[WhiteClock "0:00:12"]
[BlackClock "0:01:06"]

1. e4 {[%clk 0:02:55]}  c5 {[%clk 0:02:47]} 2. Nf3 {[%clk 0:02:51]}  d6 {[%clk 0:02:47]} 3. Bb5+ {[%clk 0:02:48]}  Nd7 {[%clk 0:02:47]} 4. O-O {[%clk 0:02:48]}  a6 {[%clk 0:02:47]} 5. Bd3 {[%clk 0:02:49]}  Ngf6 {[%clk 0:02:47]} 6. c3 {[%clk 0:02:44]}  b5 {[%clk 0:02:46]} 7. Re1 {[%clk 0:02:44]}  Bb7 {[%clk 0:02:46]} 8. Bc2 {[%clk 0:02:44]}  c4 {[%clk 0:02:46]} 9. d4 {[%clk 0:02:43]}  cxd3 {[%clk 0:02:46]} 10. Bxd3 {[%clk 0:02:37]}  g6 {[%clk 0:02:45]} 11. a4 {[%clk 0:02:37]}  bxa4 {[%clk 0:02:43]} 12. c4 {[%clk 0:02:29]}  Bg7 {[%clk 0:02:43]} 13. Nc3 {[%clk 0:02:29]}  Nc5 {[%clk 0:02:41]} 14. Bc2 {[%clk 0:01:50]}  O-O {[%clk 0:02:41]} 15. Nd4 {[%clk 0:01:47]}  Rb8 {[%clk 0:02:32]} 16. f3 {[%clk 0:01:45]}  Qb6 {[%clk 0:02:28]} 17. Kh1 {[%clk 0:01:44]}  Rfc8 {[%clk 0:02:24]} 18. Nxa4 {[%clk 0:01:35]}  Nxa4 {[%clk 0:02:20]} 19. Rxa4 {[%clk 0:01:36]}  Nxe4 {[%clk 0:02:18]} 20. Bxe4 {[%clk 0:01:33]}  Qxd4 {[%clk 0:02:17]} 21. Qxd4 {[%clk 0:00:59]}  Bxd4 {[%clk 0:02:18]} 22. Bxb7 {[%clk 0:00:58]}  Rxb7 {[%clk 0:02:19]} 23. Rxa6 {[%clk 0:00:57]}  Rxc4 {[%clk 0:02:11]} 24. Bh6 {[%clk 0:00:57]}  Rc8 {[%clk 0:01:54]} 25. Bg5 {[%clk 0:00:49]}  f6 {[%clk 0:01:48]} 26. Bf4 {[%clk 0:00:39]}  Bxb2 {[%clk 0:01:45]} 27. h3 {[%clk 0:00:37]}  Be5 {[%clk 0:01:40]} 28. Bxe5 {[%clk 0:00:35]}  fxe5 {[%clk 0:01:36]} 29. Ra2 {[%clk 0:00:36]}  Rbc7 {[%clk 0:01:33]} 30. Kg1 {[%clk 0:00:31]}  Rc1 {[%clk 0:01:29]} 31. Rxc1 {[%clk 0:00:29]}  Rxc1+ {[%clk 0:01:30]} 32. Kf2 {[%clk 0:00:30]}  Kg7 {[%clk 0:01:29]} 33. h4 {[%clk 0:00:28]}  h6 {[%clk 0:01:29]} 34. g3 {[%clk 0:00:27]}  g5 {[%clk 0:01:28]} 35. hxg5 {[%clk 0:00:27]}  hxg5 {[%clk 0:01:29]} 36. Rd2 {[%clk 0:00:25]}  Rc4 {[%clk 0:01:22]} 37. Ke3 {[%clk 0:00:24]}  Kf6 {[%clk 0:01:22]} 38. g4 {[%clk 0:00:25]}  Ke6 {[%clk 0:01:21]} 39. Ra2 {[%clk 0:00:24]}  Rc3+ {[%clk 0:01:19]} 40. Ke2 {[%clk 0:00:23]}  Kf6 {[%clk 0:01:17]} 41. Ra6 {[%clk 0:00:22]}  e4 {[%clk 0:01:08]} 42. fxe4 {[%clk 0:00:21]}  Ke5 {[%clk 0:01:09]} 43. Ra5+ {[%clk 0:00:21]}  Kxe4 {[%clk 0:01:08]} 44. Rxg5 {[%clk 0:00:21]}  e5 {[%clk 0:01:06]} 45. Rg6 {[%clk 0:00:18]}  d5 {[%clk 0:01:06]} 46. g5 {[%clk 0:00:17]}  Rc2+ {[%clk 0:01:05]} 47. Kd1 {[%clk 0:00:17]}  Rg2 {[%clk 0:01:05]} 48. Rg8 {[%clk 0:00:15]}  d4 {[%clk 0:01:05]} 49. g6 {[%clk 0:00:15]}  Kd3 {[%clk 0:01:06]} 50. Ke1 {[%clk 0:00:15]}  e4 {[%clk 0:01:06]} 51. g7 {[%clk 0:00:12]}  e3 {[%clk 0:01:06]} 52. Kf1 {[%clk 0:00:12]}  Rg6 {[%clk 0:01:06]} 0-1


[Site "https://www.chess.com"]

[Event "Titled Tuesday Blitz March 21 Late 2023"]
[White "Sokac, Marko"]
[Black "Plat, Vojtech"]
[WhiteFideId "14531356"]
[BlackFideId "325740"]
[WhiteElo "2355"]
[BlackElo "2542"]
[Result "0-1"]
[Round "02"]
[TimeControl "180+2"]
[Date "2023.03.21"]
[WhiteClock "0:00:07"]
[BlackClock "0:01:15"]

1. e4 {[%clk 0:03:00]}  d6 {[%clk 0:02:59]} 2. Nc3 {[%clk 0:03:01]}  Nf6 {[%clk 0:02:59]} 3. d4 {[%clk 0:03:01]}  e5 {[%clk 0:03:00]} 4. Nf3 {[%clk 0:03:01]}  Nbd7 {[%clk 0:02:59]} 5. Rg1 {[%clk 0:03:02]}  exd4 {[%clk 0:02:57]} 6. Nxd4 {[%clk 0:03:03]}  Nc5 {[%clk 0:02:56]} 7. f3 {[%clk 0:02:55]}  g6 {[%clk 0:02:56]} 8. Be3 {[%clk 0:02:55]}  Bg7 {[%clk 0:02:56]} 9. g4 {[%clk 0:02:55]}  O-O {[%clk 0:02:55]} 10. Qd2 {[%clk 0:02:51]}  Re8 {[%clk 0:02:55]} 11. O-O-O {[%clk 0:02:50]}  Nfd7 {[%clk 0:02:49]} 12. Kb1 {[%clk 0:02:49]}  c6 {[%clk 0:02:46]} 13. h4 {[%clk 0:02:42]}  Ne5 {[%clk 0:02:30]} 14. Be2 {[%clk 0:02:42]}  b5 {[%clk 0:02:20]} 15. f4 {[%clk 0:02:20]}  Nc4 {[%clk 0:02:20]} 16. Bxc4 {[%clk 0:02:20]}  bxc4 {[%clk 0:02:20]} 17. Nxc6 {[%clk 0:02:20]}  Qb6 {[%clk 0:02:20]} 18. Nd4 {[%clk 0:00:33]}  Rb8 {[%clk 0:02:16]} 19. b3 {[%clk 0:00:32]}  cxb3 {[%clk 0:02:15]} 20. cxb3 {[%clk 0:00:33]}  Bb7 {[%clk 0:01:48]} 21. Nd5 {[%clk 0:00:26]}  Bxd5 {[%clk 0:01:45]} 22. exd5 {[%clk 0:00:27]}  Ne4 {[%clk 0:01:38]} 23. Qd3 {[%clk 0:00:22]}  Qb4 {[%clk 0:01:31]} 24. Rc1 {[%clk 0:00:19]}  Nc5 {[%clk 0:01:17]} 25. Qc3 {[%clk 0:00:06]}  Qxc3 {[%clk 0:01:15]} 26. Rxc3 {[%clk 0:00:07]}  Rxe3 {[%clk 0:01:15]} 0-1


[Site "https://www.chess.com"]

[Event "Titled Tuesday Blitz March 21 Late 2023"]
[White "Poliakova, Varvara"]
[Black "Ashraf, Artin"]
[WhiteFideId "13518313"]
[BlackFideId "22514805"]
[WhiteElo "2075"]
[BlackElo "2188"]
[Result "0-1"]
[Round "02"]
[TimeControl "180+2"]
[Date "2023.03.21"]
[WhiteClock "0:00:15"]
[BlackClock "0:00:15"]

1. e4 {[%clk 0:03:00]}  c5 {[%clk 0:02:58]} 2. Nf3 {[%clk 0:03:00]}  d6 {[%clk 0:02:59]} 3. d4 {[%clk 0:03:00]}  cxd4 {[%clk 0:03:00]} 4. Nxd4 {[%clk 0:03:00]}  Nf6 {[%clk 0:03:00]} 5. Nc3 {[%clk 0:03:00]}  a6 {[%clk 0:03:00]} 6. h3 {[%clk 0:02:58]}  e5 {[%clk 0:02:59]} 7. Nde2 {[%clk 0:02:58]}  h5 {[%clk 0:02:59]} 8. g3 {[%clk 0:02:58]}  Be6 {[%clk 0:02:59]} 9. Bg2 {[%clk 0:02:58]}  Nbd7 {[%clk 0:02:58]} 10. O-O {[%clk 0:02:57]}  Be7 {[%clk 0:02:56]} 11. Be3 {[%clk 0:02:57]}  Rc8 {[%clk 0:02:52]} 12. a4 {[%clk 0:02:50]}  O-O {[%clk 0:02:35]} 13. a5 {[%clk 0:02:49]}  Qc7 {[%clk 0:02:17]} 14. Qd2 {[%clk 0:02:42]}  Rfd8 {[%clk 0:02:02]} 15. Rfc1 {[%clk 0:02:12]}  Qc6 {[%clk 0:01:55]} 16. Nd5 {[%clk 0:02:08]}  Bxd5 {[%clk 0:01:07]} 17. exd5 {[%clk 0:02:09]}  Qc7 {[%clk 0:01:07]} 18. c4 {[%clk 0:02:06]}  g6 {[%clk 0:01:05]} 19. b4 {[%clk 0:02:02]}  Bf8 {[%clk 0:01:04]} 20. Bf1 {[%clk 0:01:50]}  Qb8 {[%clk 0:00:59]} 21. Nc3 {[%clk 0:01:49]}  Nh7 {[%clk 0:00:54]} 22. Na4 {[%clk 0:01:46]}  Rc7 {[%clk 0:00:45]} 23. Nb6 {[%clk 0:01:43]}  f5 {[%clk 0:00:45]} 24. Nxd7 {[%clk 0:01:42]}  Rcxd7 {[%clk 0:00:40]} 25. Bh6 {[%clk 0:01:39]}  Nf6 {[%clk 0:00:37]} 26. Bxf8 {[%clk 0:01:39]}  Rxf8 {[%clk 0:00:38]} 27. Qg5 {[%clk 0:01:34]}  Kg7 {[%clk 0:00:37]} 28. Bd3 {[%clk 0:01:33]}  e4 {[%clk 0:00:36]} 29. Bb1 {[%clk 0:01:30]}  Qd8 {[%clk 0:00:33]} 30. Qd2 {[%clk 0:01:26]}  Qe7 {[%clk 0:00:31]} 31. Qe3 {[%clk 0:01:20]}  Rc8 {[%clk 0:00:29]} 32. Ba2 {[%clk 0:01:18]}  Rdc7 {[%clk 0:00:28]} 33. Qd4 {[%clk 0:01:13]}  Kh7 {[%clk 0:00:24]} 34. Rc2 {[%clk 0:01:11]}  Nd7 {[%clk 0:00:24]} 35. Rac1 {[%clk 0:01:08]}  Ne5 {[%clk 0:00:24]} 36. Kg2 {[%clk 0:01:02]}  Nd3 {[%clk 0:00:24]} 37. Rb1 {[%clk 0:01:01]}  h4 {[%clk 0:00:25]} 38. c5 {[%clk 0:00:49]}  Qe5 {[%clk 0:00:22]} 39. Qxe5 {[%clk 0:00:47]}  Nxe5 {[%clk 0:00:23]} 40. Bc4 {[%clk 0:00:40]}  dxc5 {[%clk 0:00:21]} 41. d6 {[%clk 0:00:38]}  Rc6 {[%clk 0:00:21]} 42. Be6 {[%clk 0:00:34]}  Re8 {[%clk 0:00:17]} 43. d7 {[%clk 0:00:30]}  Rd8 {[%clk 0:00:17]} 44. Bd5 {[%clk 0:00:27]}  Rd6 {[%clk 0:00:17]} 45. Bxb7 {[%clk 0:00:27]}  c4 {[%clk 0:00:15]} 46. b5 {[%clk 0:00:26]}  axb5 {[%clk 0:00:15]} 47. a6 {[%clk 0:00:26]}  R6xd7 {[%clk 0:00:14]} 48. Rxb5 {[%clk 0:00:25]}  Nd3 {[%clk 0:00:14]} 49. Rxc4 {[%clk 0:00:23]}  Ne1+ {[%clk 0:00:14]} 50. Kf1 {[%clk 0:00:21]}  Nf3 {[%clk 0:00:15]} 51. Rbc5 {[%clk 0:00:15]}  Rd1+ {[%clk 0:00:15]} 52. Ke2 {[%clk 0:00:15]}  Re1# {[%clk 0:00:15]} 0-1


[Site "https://www.chess.com"]

[Event "Titled Tuesday Blitz March 21 Late 2023"]
[White "Rostovtsev, Dmitry"]
[Black "Marjanovic, Annamaria"]
[WhiteFideId "34278320"]
[BlackFideId "750930"]
[WhiteElo "2280"]
[BlackElo "2212"]
[Result "1-0"]
[Round "02"]
[TimeControl "180+2"]
[Date "2023.03.21"]
[WhiteClock "0:01:38"]
[BlackClock "0:00:07"]

1. e4 {[%clk 0:03:00]}  e6 {[%clk 0:02:58]} 2. d4 {[%clk 0:03:01]}  d5 {[%clk 0:02:58]} 3. Nc3 {[%clk 0:03:01]}  Nf6 {[%clk 0:02:57]} 4. e5 {[%clk 0:03:01]}  Nfd7 {[%clk 0:02:58]} 5. f4 {[%clk 0:03:01]}  c5 {[%clk 0:02:58]} 6. Nf3 {[%clk 0:03:01]}  Nc6 {[%clk 0:02:59]} 7. Be3 {[%clk 0:03:02]}  a6 {[%clk 0:02:59]} 8. Qd2 {[%clk 0:03:02]}  b5 {[%clk 0:02:59]} 9. Nd1 {[%clk 0:03:02]}  Qb6 {[%clk 0:02:56]} 10. Be2 {[%clk 0:03:01]}  b4 {[%clk 0:02:54]} 11. O-O {[%clk 0:02:57]}  c4 {[%clk 0:02:52]} 12. Nf2 {[%clk 0:02:51]}  a5 {[%clk 0:02:39]} 13. g4 {[%clk 0:02:50]}  g6 {[%clk 0:02:38]} 14. f5 {[%clk 0:02:32]}  gxf5 {[%clk 0:02:33]} 15. gxf5 {[%clk 0:02:33]}  exf5 {[%clk 0:02:18]} 16. Nh3 {[%clk 0:02:32]}  Ba6 {[%clk 0:02:09]} 17. c3 {[%clk 0:02:24]}  Ne7 {[%clk 0:02:02]} 18. Kh1 {[%clk 0:02:21]}  O-O-O {[%clk 0:01:55]} 19. Nfg5 {[%clk 0:02:22]}  Qg6 {[%clk 0:01:48]} 20. Rg1 {[%clk 0:02:20]}  Nc6 {[%clk 0:01:21]} 21. Nf4 {[%clk 0:02:19]}  Qg7 {[%clk 0:00:57]} 22. Nge6 {[%clk 0:02:18]}  Qh6 {[%clk 0:00:54]} 23. Nxd8 {[%clk 0:02:17]}  Nxd8 {[%clk 0:00:53]} 24. Ng6 {[%clk 0:02:17]}  Qg7 {[%clk 0:00:43]} 25. Nxh8 {[%clk 0:02:15]}  Qxh8 {[%clk 0:00:44]} 26. Bh6 {[%clk 0:02:13]}  Bb7 {[%clk 0:00:35]} 27. Raf1 {[%clk 0:02:12]}  Ne6 {[%clk 0:00:26]} 28. Rxf5 {[%clk 0:02:07]}  Bxh6 {[%clk 0:00:19]} 29. Qxh6 {[%clk 0:02:08]}  Qe8 {[%clk 0:00:18]} 30. Qxh7 {[%clk 0:02:06]}  f6 {[%clk 0:00:17]} 31. Rg8 {[%clk 0:02:05]}  Nef8 {[%clk 0:00:17]} 32. Qh5 {[%clk 0:02:01]}  Qe6 {[%clk 0:00:16]} 33. Rxf6 {[%clk 0:02:01]}  Qxg8 {[%clk 0:00:16]} 34. Qf7 {[%clk 0:01:44]}  Qg5 {[%clk 0:00:14]} 35. Rf1 {[%clk 0:01:40]}  Qh6 {[%clk 0:00:12]} 36. Bg4 {[%clk 0:01:38]}  Qh4 {[%clk 0:00:07]} 37. Qxf8+ {[%clk 0:01:37]}  Kc7 {[%clk 0:00:08]} 38. Qd6+ {[%clk 0:01:37]}  Kc8 {[%clk 0:00:07]} 39. Bxd7+ {[%clk 0:01:38]}  Kd8 {[%clk 0:00:07]} 40. Rf8# {[%clk 0:01:38]} 1-0


[Site "https://www.chess.com"]

[Event "Titled Tuesday Blitz March 21 Late 2023"]
[White "Idani, Pouya"]
[Black "Cremisi, Daniel"]
[WhiteFideId "12510130"]
[BlackFideId "2089882"]
[WhiteElo "2574"]
[BlackElo "2172"]
[Result "1-0"]
[Round "02"]
[TimeControl "180+2"]
[Date "2023.03.21"]
[WhiteClock "0:01:21"]
[BlackClock "0:01:25"]

1. e4 {[%clk 0:03:00]}  e6 {[%clk 0:02:59]} 2. d4 {[%clk 0:03:00]}  d5 {[%clk 0:02:59]} 3. Nc3 {[%clk 0:03:00]}  dxe4 {[%clk 0:02:57]} 4. Nxe4 {[%clk 0:02:59]}  Bd7 {[%clk 0:02:57]} 5. Nf3 {[%clk 0:02:55]}  Bc6 {[%clk 0:02:57]} 6. Bd3 {[%clk 0:02:54]}  Nd7 {[%clk 0:02:57]} 7. Bf4 {[%clk 0:02:54]}  Ngf6 {[%clk 0:02:55]} 8. Nxf6+ {[%clk 0:02:54]}  Nxf6 {[%clk 0:02:51]} 9. c3 {[%clk 0:02:46]}  Bd6 {[%clk 0:02:48]} 10. Ne5 {[%clk 0:02:45]}  Bxe5 {[%clk 0:02:47]} 11. Bxe5 {[%clk 0:02:45]}  O-O {[%clk 0:02:44]} 12. Qc2 {[%clk 0:02:27]}  g6 {[%clk 0:02:37]} 13. O-O-O {[%clk 0:02:21]}  Nd7 {[%clk 0:02:36]} 14. Bg3 {[%clk 0:02:21]}  Rc8 {[%clk 0:02:36]} 15. f3 {[%clk 0:02:15]}  Nf6 {[%clk 0:02:35]} 16. Kb1 {[%clk 0:02:14]}  Nd5 {[%clk 0:02:29]} 17. Qd2 {[%clk 0:02:10]}  a6 {[%clk 0:02:28]} 18. h4 {[%clk 0:02:09]}  Ne7 {[%clk 0:01:57]} 19. h5 {[%clk 0:02:07]}  Bb5 {[%clk 0:01:54]} 20. c4 {[%clk 0:01:58]}  Bc6 {[%clk 0:01:51]} 21. hxg6 {[%clk 0:01:58]}  fxg6 {[%clk 0:01:45]} 22. Be5 {[%clk 0:01:48]}  Nf5 {[%clk 0:01:44]} 23. g4 {[%clk 0:01:41]}  Bxf3 {[%clk 0:01:32]} 24. gxf5 {[%clk 0:01:36]}  Bxh1 {[%clk 0:01:32]} 25. fxg6 {[%clk 0:01:33]}  Bf3 {[%clk 0:01:32]} 26. Rg1 {[%clk 0:01:21]}  hxg6 {[%clk 0:01:25]} 27. Rxg6+ {[%clk 0:01:20]}  Kf7 {[%clk 0:01:25]} 28. Rg7+ {[%clk 0:01:21]} 1-0


[Site "https://www.chess.com"]